Cogmind - Beta 15 @@@ ROGUE MODE // 2025.05.14 @ 13:51:44 Player: Pain3D Result: Destroyed by D-53 Grenadier with Mini Grenade Launcher Performance ------------- Evolutions (1) 500 Regions Visited (3) 600 Robots Destroyed (25) 125 Value Destroyed (573) 573 Prototype IDs (0) 0 Alien Tech Used (0) 0 Bonus (0) 0 TOTAL SCORE: 1798 Bonus ------- None Cogmind --------- Core Integrity 0/400 Matter 212/300 Energy 48/265 System Corruption 5% Temperature Cool (0) Movement Walking (260) Ox2 Location -9/Mines Parts ------- > --- POWER (1) -------- Improved Ion Engine > --- PROPULSION (2) --- Aluminum Leg Aluminum Leg > --- UTILITY (3) ------ High-capacity Storage Unit Improved Targeting Computer > --- WEAPON (3) ------- (None) > --- INVENTORY (20) --- Improved Ion Engine Aluminum Leg Aluminum Leg Heat Sink Heat Sink Large Storage Unit Improved Sensor Array Improved Sensor Array Improved Signal Interpreter Improved Signal Interpreter Reaction Control System Light Armor Plating Mining Laser Peak State ------------ > --- POWER ------------ Improved Ion Engine > --- PROPULSION ------- Aluminum Leg Aluminum Leg > --- UTILITY ---------- High-capacity Storage Unit Improved Targeting Computer Reaction Control System > --- WEAPON ----------- Assault Rifle Light Assault Rifle Rocket Launcher > --- INVENTORY -------- Light Ion Engine Improved Ion Engine Improved Ion Engine Aluminum Leg Aluminum Leg Aluminum Leg Heat Sink Heat Sink Small Storage Unit Medium Storage Unit Large Storage Unit Improved Sensor Array Improved Sensor Array Improved Signal Interpreter Improved Signal Interpreter Reaction Control System Light Armor Plating Light Assault Rifle Mining Laser [Rating: 17] Favorites ----------- Power Improved Ion Engine Engine Improved Ion Engine Propulsion Light Treads Treads Light Treads Leg Aluminum Leg Utility High-capacity Storage Unit Device Reaction Control System Storage High-capacity Storage Unit Processor Improved Targeting Computer Protection Light Armor Plating Weapon Light Assault Rifle Ballistic Gun Light Assault Rifle Launcher Grenade Launcher Build | -11 -10 -9 -9 ------- Run | Yrd Mat Mat Min Slots Evolved 2 | . . 2 . Power . | . . . . Propulsion . | . . . . Utility 1 | . . 1 . Weapon 1 | . . 1 . Parts Attached 27 | 6 7 9 5 Power 4 | 1 1 1 1 Engine 4 | 1 1 1 1 Core . | . . . . Reactor . | . . . . Propulsion 6 | 2 . 2 2 Treads 2 | 2 . . . Leg 4 | . . 2 2 Wheel . | . . . . Hover . | . . . . Flight . | . . . . Utility 10 | 1 5 4 . Device 1 | . . 1 . Storage 4 | 1 2 1 . Processor 2 | . . 2 . Hackware . | . . . . Protection 3 | . 3 . . Artifact . | . . . . Weapon 7 | 2 1 2 2 Energy Gun . | . . . . Energy Cannon . | . . . . Ballistic Gun 3 | 2 . 1 . Ballistic Cannon . | . . . . Launcher 4 | . 1 1 2 Special Weapon . | . . . . Impact Weapon . | . . . . Slashing Weapon . | . . . . Piercing Weapon . | . . . . Special Melee Weapon . | . . . . Unidentified Prototypes . | . . . . Parts Lost 13 | . 3 . 10 Power 2 | . 1 . 1 Propulsion 2 | . . . 2 Utility 2 | . 1 . 1 Weapon 7 | . 1 . 6 Highest Loss Streak 9 | . 1 . 9 To Critical Strikes . | . . . . Average Backups 10 | 1 7 13 18 Power 1 | . . 2 2 Propulsion 1 | . . 1 3 Utility 5 | . 4 7 10 Weapon 1 | . 2 1 1 Tool/Special . | . . . . Unused Backups 11 | . . . 11 Power 1 | . . . 1 Propulsion 2 | . . . 2 Utility 7 | . . . 7 Weapon 1 | . . . 1 Tool/Special . | . . . . Average Slot Usage (%) 97 | . 98 98 94 Engine 12 | . 13 11 10 Treads 16 | . 28 5 . Leg 8 | . . 16 20 Device 2 | . . 3 10 Storage 13 | . 15 11 11 Processor 6 | . . 12 11 Protection 7 | . 11 3 . Ballistic Gun 22 | . 18 26 25 Launcher 7 | . 9 6 5 Peak Build Rating 17 | 6 8 17 17 Average Rating 10 | 4 7 13 15 On Entrance 7 | . 6 7 17 Naked Turns . | . . . . Heaviest Build 55 | 13 52 55 55 Greatest Support 40 | 40 40 40 20 Greatest Overweight (x) 4 | 1 1 2 4 Average Overweight (x) 1 | . . 1 2 Largest Inventory Capacity 20 | 8 20 20 20 Average Capacity 18 | 7 18 19 20 Most Carried 20 | 6 10 19 20 Average Carried 10 | 1 7 13 18 Final Capacity 20 | 8 20 20 20 Final Carried 19 | 1 7 19 13 Class Distribution -------------------- 55% | Mutant 42% | Gunner Dominant Class ---------------- Mutant | -10/Materials Gunner | -9/Materials Gunner | -9/Mines Resources | -11 -10 -9 -9 ----------- Run | Yrd Mat Mat Min Matter Collected 690 | 205 174 157 154 Remotely . | . . . . Salvage Created 600 | . 307 207 86 Parts 41 | . 25 12 4 Haulers Intercepted . | . . . . Recyclers Shooed 2 | . 1 . 1 Parts Field Recycled . | . . . . Retrieved Matter . | . . . . Parts Self-Destructed . | . . . . Prevented . | . . . . Kills | -11 -10 -9 -9 ------- Run | Yrd Mat Mat Min Combat Hostiles Destroyed 22 | . 14 5 3 Guns 16 | . 8 5 3 AOE 6 | . 6 . . Classes Destroyed 5 | . 4 . 1 Operator 1 | . 1 . . Watcher 3 | . 1 2 . Swarmer 11 | . 8 3 . Grunt 10 | . 6 2 2 Assembled 1 | . . . 1 Best Kill Streak 5 | . 5 3 2 Combat Bots Only 5 | . 5 3 2 Max Kills in Single Turn 2 | . 2 2 1 Gunslinging 1 | . . 1 . Exploded 2 | . 2 . . Melee . | . . . . Uniques/NPCs Destroyed . | . . . . Combat | -11 -10 -9 -9 -------- Run | Yrd Mat Mat Min Hostile Shots Fired 166 | . 89 28 49 Missed 41 | . 26 7 8 Hits 125 | . 63 21 41 Melee 1 | . . . 1 Projectile 124 | . 63 21 40 AOE 17 | . . . 17 Critical Strikes 1 | . 1 . . Damage Taken 2041 | . 647 229 1165 Core 442 | . 42 34 366 Absorbed by Shields . | . . . . Core Remaining (%) 91 | 100 83 . . Volleys Fired 78 | . 47 16 15 Largest 3 | . 2 3 3 Hottest 73 | . 50 60 73 Shots Fired 141 | . 71 41 29 Gun 130 | . 63 41 26 Cannon . | . . . . Launcher 11 | . 8 . 3 Special . | . . . . Kinetic 130 | . 63 41 26 Thermal . | . . . . Explosive 11 | . 8 . 3 Electromagnetic . | . . . . Robot Hit Streak 9 | . 9 4 6 Robot Miss Streak 4 | . 4 3 2 Penetration Max . | . . . . Secondary Targets 4 | . 1 2 1 Max Gunslinging Chain 1 | . 1 1 1 Shots Hit Robots 83 | . 39 25 19 Core Hits 51 | . 28 14 9 Critical Kills . | . . . . Critical Parts Destroyed 1 | . 1 . . Critical Strikes 1 | . 1 . . Destroy 1 | . 1 . . Melee Attacks . | . . . . Impact . | . . . . Slashing . | . . . . Piercing . | . . . . Sneak Attacks . | . . . . Combat Hostiles . | . . . . Follow-up Attacks . | . . . . Damage Inflicted 1233 | . 770 228 235 Guns 713 | . 321 228 164 Cannons . | . . . . Explosions 520 | . 449 . 71 Melee . | . . . . Ramming . | . . . . Kinetic 713 | . 321 228 164 Thermal . | . . . . Explosive 520 | . 449 . 71 Electromagnetic . | . . . . Impact . | . . . . Slashing . | . . . . Piercing . | . . . . Highest Corruption 5 | . . . 5 Average Corruption 5 | . . . 5 Corruption Purged . | . . . . Corruption Blocked . | . . . . Overload Shots . | . . . . Overflow Damage 3 | . 3 . . Projectiles . | . . . . Explosions 3 | . 3 . . Melee . | . . . . Knockbacks . | . . . . Impact . | . . . . Kinetic . | . . . . Secondary . | . . . . Self-Inflicted Damage 124 | . 61 . 63 Shots 5 | . 3 . 2 Rammed . | . . . . Targets Rammed . | . . . . Kicked . | . . . . Crushed . | . . . . Highest Temperature 137 | . 33 137 22 Average Temperature 21 | . 7 59 8 Received Heat Transfer 353 | . 171 96 86 Siege Activations . | . . . . Martial Activations . | . . . . Shielding Activations . | . . . . Robots Disrupted . | . . . . Combat Hostiles . | . . . . Robots Corrupted . | . . . . Combat Hostiles . | . . . . Parts Fried . | . . . . Impact Corruptions . | . . . . Robots Melted . | . . . . Combat Hostiles . | . . . . Parts Melted . | . . . . Heat Transferred . | . . . . Parts Sabotaged . | . . . . Parts Stolen . | . . . . Parts Stripped . | . . . . Power Chain Reactions . | . . . . Alert | -11 -10 -9 -9 ------- Run | Yrd Mat Mat Min Maximum Alert Level 1 | . 1 . . Low Security (%) 97 | 100 95 100 100 Level 1 2 | . 4 . . Level 2 . | . . . . Level 3 . | . . . . Level 4 . | . . . . Level 5 . | . . . . High Security . | . . . . Max Security . | . . . . Peak Influence 213 | . 213 72 39 Initial 62 | . . 62 . Average 57 | . 95 28 9 Influence Increases 677 | . 473 134 70 Destroy 0b10 Robot/C 420 | . 280 100 40 Destroy 0b10 Robot/NC 20 | . 10 10 . Destroy Leader 106 | . 72 24 10 Disable Machine 30 | . 30 . . Destroy Structure 86 | . 66 . 20 Partial Spotted 15 | . 15 . . Influence Decreases 677 | . 324 283 70 Entered New Map 87 | . . 87 . Time Decay 539 | . 294 196 49 Lost Part 51 | . 30 . 21 Squads Dispatched 3 | . 3 . . Investigation . | . . . . Extermination . | . . . . Reinforcement 3 | . 3 . . Assault . | . . . . Garrison . | . . . . Intercept . | . . . . Searches Triggered . | . . . . Construction Impeded . | . . . . Haulers Reinforced . | . . . . Active Scanning Responses . | . . . . Cargo Convoy Interrupts . | . . . . Stealth | -11 -10 -9 -9 --------- Run | Yrd Mat Mat Min Distress Signals 1 | . 1 . . Communications Jammed . | . . . . Distress Signals . | . . . . Times Spotted 49 | . 23 7 19 Peak Tracking Total 12 | . 4 3 12 Tactical Retreats . | . . . . Traps | -11 -10 -9 -9 ------- Run | Yrd Mat Mat Min Traps Triggered . | . . . . Indirectly . | . . . . Trap Hack Attempts . | . . . . Triggered . | . . . . Disarmed . | . . . . Reprogrammed . | . . . . Reused . | . . . . Traps Extracted . | . . . . Installed . | . . . . Triggered . | . . . . Machines | -11 -10 -9 -9 ---------- Run | Yrd Mat Mat Min Machines Disabled 2 | . 2 . . Max in Single Turn 2 | . 2 . . Machines Repaired . | . . . . Machines Dismantled . | . . . . Machines Sabotaged . | . . . . Overloaded Fab Kills . | . . . . Hacking | -11 -10 -9 -9 --------- Run | Yrd Mat Mat Min Machines Accessed 1 | . . 1 . Terminals 1 | . . 1 . Fabricators . | . . . . Repair Stations . | . . . . Recycling Units . | . . . . Scanalyzers . | . . . . Garrison Access . | . . . . Total Hacks 1 | . . 1 . Successful 1 | . . 1 . Failed . | . . . . Catastrophic . | . . . . Database Lockouts . | . . . . Manual . | . . . . Terminals 1 | . . 1 . Fabricators . | . . . . Repair Stations . | . . . . Recycling Units . | . . . . Scanalyzers . | . . . . Garrison Access . | . . . . Terminal Hacks 1 | . . 1 . Dispatch Records 1 | . . 1 . Fabricator Hacks . | . . . . Repair Station Hacks . | . . . . Recycling Unit Hacks . | . . . . Scanalyzer . | . . . . Garrison Access Hacks . | . . . . Unauthorized Hacks . | . . . . Terminals . | . . . . Fabricators . | . . . . Repair Stations . | . . . . Recycling Units . | . . . . Scanalyzers . | . . . . Garrison Access . | . . . . Data Cores Recovered . | . . . . Used . | . . . . Hacking Detections . | . . . . Full Trace Events . | . . . . Feedback Events . | . . . . Feedback Blocked . | . . . . Robot Schematics Acquired . | . . . . Robots Built . | . . . . Authchips . | . . . . Time . | . . . . Total Robot Build Rating . | . . . . Part Schematics Acquired . | . . . . Parts Built . | . . . . Authchips . | . . . . Time . | . . . . Total Part Build Rating . | . . . . Parts Repaired . | . . . . Time . | . . . . Parts Recycled . | . . . . Recycled Matter . | . . . . Retrieved Matter . | . . . . Retrieved Components . | . . . . Parts Scanalyzed . | . . . . Part Schematics Acquired . | . . . . Parts Damaged . | . . . . Bothacking | -11 -10 -9 -9 ------------ Run | Yrd Mat Mat Min Used RIF Installer . | . . . . Robots Hacked . | . . . . Non-combat . | . . . . Combat . | . . . . Robot Hacks Applied . | . . . . Relay Couplers Released . | . . . . Fabnet Peak Effective % . | . . . . Robots Rewired . | . . . . Allies Hacked . | . . . . Hacks Repelled . | . . . . Allies | -11 -10 -9 -9 -------- Run | Yrd Mat Mat Min Total Allies . | . . . . Largest Group . | . . . . Highest-Rated Group . | . . . . Highest-Rated Ally . | . . . . Total Orders . | . . . . Ally Attacks . | . . . . Total Damage . | . . . . Kills . | . . . . Allies Corrupted . | . . . . Allies Melted . | . . . . Intel | -11 -10 -9 -9 ------- Run | Yrd Mat Mat Min Active Infowar (turns) 175 | . . 175 . Optics 175 | . . 175 . Robot Analysis Total . | . . . . Derelict Logs Recovered 1 | . . . 1 Drone Launches . | . . . . Drone Recoveries . | . . . . Exploration | -11 -10 -9 -9 ------------- Run | Yrd Mat Mat Min Turns Passed 1617 | 65 791 531 230 Spaces Moved 587 | 49 294 178 66 Core 23 | 23 . . . Treads 356 | 26 294 36 . Legs 208 | . . 142 66 Wheels . | . . . . Hover . | . . . . Flight . | . . . . Fastest Speed 50 | 50 160 240 260 Average Speed 229 | 110 225 255 262 Slowest Speed 400 | 160 240 260 400 Overloaded Moves . | . . . . Propulsion Burnouts . | . . . . Robots Hopped . | . . . . Potential Cave-ins . | . . . . Cave-ins Triggered 1 | . . . 1 Exploration Rate (%) 19 | 4 48 12 12 Regions Visited 3 Branch Regions 1 Pre-discovered Areas 1 | . . . 1 Known Exits Taken . | . . . . Unknown Exits Taken 3 | 1 1 1 . Scrap Searched 1 | . . . 1 Spaces Dug . | . . . . Terrain Destroyed 95 | . 65 . 30 Melee . | . . . . Projectile . | . . . . AOE 95 | . 65 . 30 Terrain Rammed . | . . . . Walls Destroyed . | . . . . Machines Disabled . | . . . . Actions | -11 -10 -9 -9 --------- Run | Yrd Mat Mat Min Total 742 | 60 360 222 100 Wait 6 | . . . 6 Move 584 | 48 293 177 66 Hop . | . . . . Pick Up 37 | 6 11 17 3 Fast Attach 1 | 1 . . . Attach 18 | 5 5 2 6 Detach . | . . . . Swap 12 | . 3 8 1 Drop 6 | . 1 2 3 Fire 78 | . 47 16 15 Melee . | . . . . Ram . | . . . . Kick . | . . . . Crush . | . . . . Escape Stasis . | . . . . Rewire . | . . . . Trap . | . . . . Miscellaneous . | . . . . Route ------- -11/Scrapyard -10/Materials -9/Materials -9/Mines History --------- Turn | Location | Event 7 | -11/Scrapyard | Discovered new exit (range 15) 66 | -11/Scrapyard | Entered Materials 309 | -10/Materials | Build established: Mutant 695 | -10/Materials | Discovered new exit (range 16) 857 | -10/Materials | Entered another Materials area 857 | -9/Materials | Evolved 2 slots: Utility x1, Weapon x1 1196 | -9/Materials | Build established: Gunner 1286 | -9/Materials | Discovered new exit (range 5) 1388 | -9/Materials | Entered Mines 1506 | -9/Mines | Received a Rocket Launcher from a helpful Derelict 1559 | -9/Mines | Assembled infested the area 1564 | -9/Mines | Assisted by a Guerilla fighting off Assembled 1583 | -9/Mines | Learned location of Recycling (-8) 1611 | -9/Mines | Core integrity fell below 50% 1613 | -9/Mines | Core integrity fell below 20% 1616 | -9/Mines | Crushed by falling debris 1618 | -9/Mines | Destroyed by D-53 Grenadier with Mini Grenade Launcher Last Messages --------------- as-05442 destroyed. as-82072 destroyed. as-52266 destroyed. The unstable cave ceiling collapses. Imp. Ion Engine destroyed. as-26585 destroyed. Aluminum Leg destroyed. The unstable cave ceiling collapses. Lgt. Assault Rifle destroyed. as-32587 destroyed. Assault Rifle destroyed. D-53 Grenadier destroyed. The unstable cave ceiling collapses. Rocket Launcher destroyed. as-40951 destroyed. The unstable cave ceiling collapses. Crushed by falling debris. [Achievement: Unlikely Earthworm] Lgt. Assault Rifle destroyed. System corrupted by crushing effect (+5). Map ----- +----------------------------------------------------+ | ?????????????????????????????????????????????????? | | ?????????????????????????????????????????????????? | | ?????????????????????????????????????????????????? | | ?????????????????????????????????????????????????? | | ?????????????????????????????????????????????????? | | ?????????????????????????????????????????????????? | | ?????????????????????????????????????????????????? | | ?????????????????????????????????????????????????? | | ?????????????????????????????????????????????????? | | ????????????????#????????????????????????????????? | | ????????????????# ??????#######??????????????????? | | ????????????????# ###?##########?????????????????? | | ????????????????# ### # #?????????????????? | | ????????????????### # #?????????????????? | | ?????????????????## ### # #?????????????????? | | ????????????????## ### # #?????????????????? | | ???????????????## ## ###?????????????????? | | ??????????????## ##### ###???????????????????? | | ??????????????# #???# ####??????????????????? | | ??????????????# #?### ???????????????????? | | ??????????????# #### ##??????????????????? | | ??????????????#####r### ##?????????????????? | | ?????????????????## # #### ???????? | | ?????????????????# a ???????????? | | ??????????????????# % #?????????????????? | | ??????????????????# d @ #?????????????????? | | ??????????????????### #?????????????????? | | ????????????????????# #????????????????? | | ????????????????????# ! #????????????????? | | ????????????????????## #????????????????? | | ???????????????????? a ???????????????? | | ??????????????????? ## #??????????????? | | ?????????????????? #?? ##??????????????? | | ?????????????????# #??## #???????????????? | | ?????????????????## ????? ###???????????????? | | ??????????????????## ????? #?????????????????? | | ???????????????????## #????? ?????????????????? | | ????????????????????###??????? #?????????????????? | | ?????????????????????????????? #?????????????????? | | ?????????????????????????????? ??????????????????? | | ?????????????????????????????????????????????????? | | ?????????????????????????????????????????????????? | | ?????????????????????????????????????????????????? | | ?????????????????????????????????????????????????? | | ?????????????????????????????????????????????????? | | ?????????????????????????????????????????????????? | | ?????????????????????????????????????????????????? | | ?????????????????????????????????????????????????? | | ?????????????????????????????????????????????????? | | | +----------------------------------------------------+ Best States ------------- Heat Dissipation 28 Energy Generation 12 Energy Capacity 265 Matter Stores 263 Matter Capacity 300 Sight Range 18 Terrain Scan Density 10 Armor Coverage 150 Evasion (%) 40 Targeting Accuracy 6 Recoil Reduction 2 Item Schematics ----------------- None Robot Schematics ------------------ None Fabricated ------------ Nothing Repaired ---------- Nothing Alien Tech Used ----------------- None Achievements -------------- Unlikely Earthworm Challenges ------------ None Game ------ Seed DerelictWaveBay Manual? 0 Play Time 00:18:00 Cumulative 7.1 hours Start 2025.05.14 @ 13:36:33 End 2025.05.14 @ 13:51:44 Sessions 1 Manual Loads 0 Difficulty Rogue Special Mode None Game No. 19 Rogue 19 Adventurer 0 Explorer 0 Win Type - Total 0 Types 0/0/0/0/0/0/0/0/0/0 Lore% 7 Gallery% 12 Achievement% 12 Wizard Run 0 Options --------- Layout 1 ASCII 0 Keyboard 0 Movement Arrows Keybinds 0 Fullscreen 1 Font 24/Smallcaps Map View 50x35 Zoom Use 0% Tactical HUD 0 Map Filters NONE Filters NONE Steam 1 RUN: a6717a3d-87d5-4d7e-9c89-5995c4eae402